[Event "34th MPL National U12G Chess-ch 2022"]
[Site "Mysore"]
[Date "2022.04.09"]
[Round "2.5"]
[White "Advika Sarupria"]
[Black "Prishita Gupta"]
[Result "0-1"]
[ECO "D60"]
[WhiteElo "1108"]
[BlackElo "1412"]
[Annotator "NA RC"]
[PlyCount "138"]
[EventDate "2022.04.09"]
[EventCountry "IND"]
[SourceTitle "playchess.com"]
[Source "ChessBase"]
[SourceQuality "1"]
[TimeControl "5400+30"]

1. d4 {[%emt 0:00:03]} d5 {[%emt 0:00:05]} 2. c4 {[%emt 0:00:06]} e6 {[%emt 0:00:03]} 3. Nf3 {[%emt 0:00:16]} Nf6 {[%emt 0:00:07]} 4. Bg5 {[%emt 0:00:11]} Be7 {[%emt 0:00:51]} 5. Nc3 {[%emt 0:00:23]} c6 {[%emt 0:00:02]} 6. e3 {[%emt 0:00:09]} h6 {[%emt 0:00:16]} 7. Bh4 {[%emt 0:00:55]} Nbd7 {[%emt 0:00:07]} 8. Bd3 {[%emt 0:01:39]} O-O {[%emt 0:01:07]} 9. O-O {[%emt 0:00:06]} Re8 {[%emt 0:02:06]} 10. Bxf6 {[%emt 0:03:50]} Nxf6 {[%emt 0:00:23]} 11. Ne5 {[%emt 0:00:31]} c5 {[%emt 0:01:22]} 12. cxd5 {[%emt 0:05:14]} exd5 {[%emt 0:00:07]} 13. Bb5 {[%emt 0:02:25]} Rf8 {[%emt 0:00:34]} 14. Qd2 {[%emt 0:03:56]} a6 {[%emt 0:00:22]} 15. Be2 {[%emt 0:00:11]} cxd4 {[%emt 0:00:14]} 16. exd4 {[%emt 0:00:17]} Bf5 {[%emt 0:00:14]} 17. Bf3 {[%emt 0:01:27]} Rc8 {[%emt 0:00:38]} 18. Rfe1 {[%emt 0:00:29]} Bb4 {[%emt 0:00:19]} 19. a3 {[%emt 0:00:41]} Bxc3 {[%emt 0:00:24]} 20. bxc3 {[%emt 0:00:02]} Be4 {[%emt 0:00:34]} 21. Bg4 {[%emt 0:07:40]} Rc7 {[%emt 0:01:22]} 22. Rac1 {[%emt 0:03:13]} b5 {[%emt 0:01:02]} 23. Qf4 {[%emt 0:06:25]} Qd6 {[%emt 0:01:58]} 24. f3 {[%emt 0:05:43]} Bh7 {[%emt 0:00:18]} 25. Ng6 {[%emt 0:05:00]} Qxf4 {[%emt 0:00:04]} 26. Nxf4 {[%emt 0:00:13]} Nxg4 {[%emt 0:00:05]} 27. Nxd5 {[%emt 0:00:54]} Rd7 {[%emt 0:00:25]} 28. Ne7+ {[%emt 0:00:16]} Rxe7 {[%emt 0:00:16]} 29. Rxe7 {[%emt 0:00:04]} Nf6 {[%emt 0:00:04]} 30. Ra7 {[%emt 0:00:49]} Bd3 {[%emt 0:00:45]} 31. Rd1 {[%emt 0:02:46]} Bc4 {[%emt 0:00:18]} 32. Rc1 {[%emt 0:00:47]} Rc8 {[%emt 0:00:35]} 33. Rxa6 {[%emt 0:01:27]} b4 {[%emt 0:00:04]} 34. Ra4 {[%emt 0:00:15]} b3 {[%emt 0:00:10]} 35. Rb4 {[%emt 0:01:24]} Nd5 {[%emt 0:00:22]} 36. Rb7 {[%emt 0:00:17]} Ra8 {[%emt 0:00:08]} 37. Ra1 {[%emt 0:01:44]} Nxc3 {[%emt 0:00:13]} 38. Rc7 {[%emt 0:00:17]} Ra4 {[%emt 0:00:14]} 39. Rb7 {[%emt 0:01:12]} Ne2+ {[%emt 0:00:09]} 40. Kf2 {[%emt 0:01:02]} Nxd4 {[%emt 1:32:03]} 41. Rb4 {[%emt 0:00:09]} Rxb4 {[%emt 0:00:00]} 42. axb4 {[%emt 0:00:02]} Nc2 {[%emt 0:00:00]} 43. Rb1 {[%emt 0:00:16]} Nxb4 {[%emt 0:00:00]} 44. Ke3 {[%emt 0:00:30]} Nc2+ {[%emt 0:00:00]} 45. Kd2 {[%emt 0:00:12]} Kf8 {[%emt 0:00:00]} 46. Kc3 {[%emt 0:00:24]} Be6 {[%emt 0:00:00]} 47. h3 {[%emt 0:00:24]} g5 {[%emt 0:00:00]} 48. g3 {[%emt 0:00:57]} Ne3 {[%emt 0:00:00]} 49. Re1 {[%emt 0:01:12]} Nf5 {[%emt 0:00:00]} 50. g4 {[%emt 0:00:27]} Nh4 {[%emt 0:00:00]} 51. Rf1 {[%emt 0:00:23]} Ke7 {[%emt 0:00:00]} 52. f4 {[%emt 0:00:38]} Kd6 {[%emt 0:00:00]} 53. f5 {[%emt 0:01:19]} Bd5 {[%emt 0:00:00]} 54. Ra1 {[%emt 0:00:09]} f6 {[%emt 0:00:00]} 55. Kd4 {[%emt 0:02:15]} Nf3+ {[%emt 0:00:00]} 56. Ke3 {[%emt 0:00:06]} Ke5 {[%emt 0:00:00]} 57. Rc1 {[%emt 0:01:55]} Kd6 {[%emt 0:00:00]} 58. Kd3 {[%emt 0:00:51]} Ne5+ {[%emt 0:00:00]} 59. Kd4 {[%emt 0:00:20]} Nc4 {[%emt 0:00:00]} 60. Kc3 {[%emt 0:01:22]} b2 {[%emt 0:00:00]} 61. Rd1 {[%emt 0:01:36]} Kc5 {[%emt 0:00:00]} 62. Re1 {[%emt 0:00:42]} Be4 {[%emt 0:00:00]} 63. Rxe4 {[%emt 0:00:39]} b1=Q {[%emt 0:00:00]} 64. Rxc4+ {[%emt 0:00:07]} Kd5 {[%emt 0:00:00]} 65. Rd4+ {[%emt 0:00:13]} Ke5 {[%emt 0:00:00]} 66. Rd8 {[%emt 0:00:16]} Qa1+ {[%emt 0:00:00]} 67. Kb4 {[%emt 0:00:07]} Qb2+ {[%emt 0:00:00]} 68. Kc5 {[%emt 0:00:08]} Qc3+ {[%emt 0:00:00]} 69. Kb6 {[%emt 0:00:05]} Qxh3 {[%emt 0:00:00]} 0-1

[Event "34th MPL National U12G Chess-ch 2022"]
[Site "Mysore"]
[Date "2022.04.09"]
[Round "2.6"]
[White "Arushi Severin Helen D Silva"]
[Black "Yasaswi Krishna Bommi"]
[Result "1-0"]
[ECO "C42"]
[WhiteElo "1105"]
[BlackElo "1271"]
[Annotator "NA RC"]
[PlyCount "189"]
[EventDate "2022.04.09"]
[EventCountry "IND"]
[SourceTitle "playchess.com"]
[Source "ChessBase"]
[SourceQuality "1"]
[TimeControl "5400+30"]

1. e4 {[%emt 0:00:02]} e5 {[%emt 0:00:00]} 2. Nf3 {[%emt 0:00:21]} Nf6 {[%emt 0:00:04]} 3. Nc3 {[%emt 0:00:10]} Bb4 {[%emt 0:00:16]} 4. d3 {[%emt 0:00:26]} O-O {[%emt 0:01:03]} 5. Bg5 {[%emt 0:00:57]} h6 {[%emt 0:01:31]} 6. Bh4 {[%emt 0:00:33]} d6 {[%emt 0:00:56]} 7. Be2 {[%emt 0:00:22]} Be6 {[%emt 0:00:55]} 8. O-O {[%emt 0:00:19]} Nbd7 {[%emt 0:00:56]} 9. h3 {[%emt 0:00:54]} c6 {[%emt 0:02:34]} 10. a3 {[%emt 0:00:46]} Bxc3 {[%emt 0:00:50]} 11. bxc3 {[%emt 0:00:17]} Qc7 {[%emt 0:00:38]} 12. Nd2 {[%emt 0:00:29]} d5 {[%emt 0:02:13]} 13. f3 {[%emt 0:02:31]} Nh5 {[%emt 0:01:46]} 14. d4 {[%emt 0:03:06]} exd4 {[%emt 0:02:03]} 15. cxd4 {[%emt 0:00:41]} Ng3 {[%emt 0:01:10]} 16. Bxg3 {[%emt 0:00:33]} Qxg3 {[%emt 0:00:13]} 17. Qe1 {[%emt 0:00:22]} Qg6 {[%emt 0:01:38]} 18. Qh4 {[%emt 0:03:01]} Nf6 {[%emt 0:01:44]} 19. Bd3 {[%emt 0:01:01]} Qh5 {[%emt 0:02:37]} 20. Qxh5 {[%emt 0:01:16]} Nxh5 {[%emt 0:00:10]} 21. f4 {[%emt 0:00:59]} Ng3 {[%emt 0:02:06]} 22. Rf3 {[%emt 0:00:29]} Nxe4 {[%emt 0:00:43]} 23. Nxe4 {[%emt 0:00:32]} dxe4 {[%emt 0:00:39]} 24. Bxe4 {[%emt 0:00:13]} Rad8 {[%emt 0:01:34]} 25. Rd3 {[%emt 0:01:21]} Bc4 {[%emt 0:01:52]} 26. Rd2 {[%emt 0:00:23]} Rfe8 {[%emt 0:01:10]} 27. Bf3 {[%emt 0:00:27]} Re3 {[%emt 0:01:46]} 28. Kf2 {[%emt 0:00:28]} Rde8 {[%emt 0:02:38]} 29. a4 {[%emt 0:01:43]} Kh7 {[%emt 0:01:35]} 30. Rb1 {[%emt 0:00:31]} Ba6 {[%emt 0:01:04]} 31. Rb3 {[%emt 0:02:31]} Re1 {[%emt 0:00:42]} 32. d5 {[%emt 0:02:34]} cxd5 {[%emt 0:02:28]} 33. Bxd5 {[%emt 0:00:34]} Rf1+ {[%emt 0:00:51]} 34. Kg3 {[%emt 0:00:46]} Re7 {[%emt 0:00:43]} 35. Bf3 {[%emt 0:00:59]} Ra1 {[%emt 0:02:14]} 36. Rb4 {[%emt 0:02:24]} Ra3 {[%emt 0:01:54]} 37. Kh2 {[%emt 0:00:51]} Kg6 {[%emt 0:02:01]} 38. Rd6+ {[%emt 0:00:51]} f6 {[%emt 0:02:01]} 39. Be4+ {[%emt 0:00:57]} Kf7 {[%emt 0:01:25]} 40. Bd5+ {[%emt 0:01:01]} Ke8 {[%emt 0:00:29]} 41. Bb3 {[%emt 0:00:25]} Rd7 {[%emt 0:03:20]} 42. Re6+ {[%emt 0:00:21]} Kd8 {[%emt 0:00:20]} 43. Rbe4 {[%emt 0:00:42]} b6 {[%emt 0:02:04]} 44. Re3 {[%emt 0:00:34]} Ra1 {[%emt 0:00:50]} 45. Re8+ {[%emt 0:00:14]} Kc7 {[%emt 0:00:11]} 46. Rc3+ {[%emt 0:00:14]} Kb7 {[%emt 0:00:52]} 47. Be6 {[%emt 0:00:37]} Rc7 {[%emt 0:03:10]} 48. Bc8+ {[%emt 0:00:58]} Rxc8 {[%emt 0:00:53]} 49. Rexc8 {[%emt 0:00:31]} Be2 {[%emt 0:00:51]} 50. R3c7+ {[%emt 0:00:16]} Ka6 {[%emt 0:00:10]} 51. Ra8 {[%emt 0:00:15]} Ka5 {[%emt 0:00:19]} 52. Rcxa7+ {[%emt 0:00:32]} Kb4 {[%emt 0:00:10]} 53. Rb8 {[%emt 0:00:40]} b5 {[%emt 0:00:22]} 54. Rxg7 {[%emt 0:00:36]} Rxa4 {[%emt 0:00:18]} 55. Re7 {[%emt 0:00:23]} Bc4 {[%emt 0:00:55]} 56. Re3 {[%emt 0:00:44]} Ra2 {[%emt 0:00:34]} 57. c3+ {[%emt 0:00:16]} Kb3 {[%emt 0:00:30]} 58. Rb6 {[%emt 0:00:50]} Bd5 {[%emt 0:02:29]} 59. Rxb5+ {[%emt 0:00:25]} Kc4 {[%emt 0:00:09]} 60. Rb4+ {[%emt 0:00:20]} Kc5 {[%emt 0:00:20]} 61. Rg3 {[%emt 0:00:08]} h5 {[%emt 0:01:12]} 62. h4 {[%emt 0:00:20]} f5 {[%emt 0:00:47]} 63. Rb8 {[%emt 0:00:13]} Rf2 {[%emt 0:01:10]} 64. Rc8+ {[%emt 0:00:17]} Kd6 {[%emt 0:47:22]} 65. Rd3 {[%emt 1:13:28]} Ke6 {[%emt 0:00:00]} 66. Re8+ {[%emt 0:00:00]} Kf7 {[%emt 0:00:00]} 67. Rxd5 {[%emt 0:00:00]} Kxe8 {[%emt 0:00:00]} 68. Rxf5 {[%emt 0:00:00]} Rc2 {[%emt 0:00:00]} 69. Rc5 {[%emt 0:00:00]} Ke7 {[%emt 0:00:00]} 70. Kh3 {[%emt 0:00:00]} Kd6 {[%emt 0:00:00]} 71. Rc4 {[%emt 0:00:00]} Kd5 {[%emt 0:00:00]} 72. Rc8 {[%emt 0:00:00]} Ke4 {[%emt 0:00:00]} 73. Kg3 {[%emt 0:00:00]} Kf5 {[%emt 0:00:00]} 74. Rc5+ {[%emt 0:00:00]} Ke4 {[%emt 0:05:00]} 75. Re5+ {[%emt 0:00:00]} Kd3 {[%emt 0:00:00]} 76. Rxh5 {[%emt 0:00:00]} Rxc3 {[%emt 0:00:00]} 77. Re5 {[%emt 0:00:00]} Kd4+ {[%emt 0:00:00]} 78. Kg4 {[%emt 0:00:00]} Rc2 {[%emt 0:00:00]} 79. g3 {[%emt 0:00:00]} Rc8 {[%emt 0:00:00]} 80. h5 {[%emt 0:00:00]} Rg8+ {[%emt 0:00:00]} 81. Rg5 {[%emt 0:00:00]} Re8 {[%emt 0:00:00]} 82. h6 {[%emt 0:00:00]} Rh8 {[%emt 0:00:00]} 83. Kh5 {[%emt 0:00:00]} Ke4 {[%emt 0:00:00]} 84. Rg7 {[%emt 0:00:00]} Kf5 {[%emt 0:00:00]} 85. h7 {[%emt 0:00:00]} Kf6 {[%emt 0:00:00]} 86. Kh6 {[%emt 0:00:00]} Rd8 {[%emt 0:00:00]} 87. Rg8 {[%emt 0:00:00]} Rd2 {[%emt 0:00:00]} 88. h8=Q+ {[%emt 0:00:00]} Kf5 {[%emt 0:00:00]} 89. Qh7+ {[%emt 0:00:00]} Ke6 {[%emt 0:00:00]} 90. Qe4+ {[%emt 0:00:00]} Kd7 {[%emt 0:00:00]} 91. Rg7+ {[%emt 0:00:00]} Kd6 {[%emt 0:00:00]} 92. Rg6+ {[%emt 0:00:00]} Kc7 {[%emt 0:00:00]} 93. Qc6+ {[%emt 0:00:00]} Kb8 {[%emt 0:00:00]} 94. Rg8+ {[%emt 0:00:00]} Ka7 {[%emt 0:00:00]} 95. Ra8# {[%emt 0:00:00]} 1-0

[Event "34th MPL National U12G Chess-ch 2022"]
[Site "Mysore"]
[Date "2022.04.10"]
[Round "3.1"]
[White "Gorli Nyna"]
[Black "Shubhi Gupta"]
[Result "0-1"]
[ECO "C54"]
[WhiteElo "1151"]
[BlackElo "1434"]
[Annotator "NA RC"]
[PlyCount "128"]
[EventDate "2022.04.09"]
[EventCountry "IND"]
[SourceTitle "playchess.com"]
[Source "ChessBase"]
[SourceQuality "1"]
[TimeControl "5400+30"]

1. e4 {[%emt 0:00:03]} e5 {[%emt 0:00:21]} 2. Nf3 {[%emt 0:00:10]} Nc6 {[%emt 0:00:16]} 3. Bc4 {[%emt 0:00:13]} Bc5 {[%emt 0:00:22]} 4. c3 {[%emt 0:00:34]} Nf6 {[%emt 0:00:18]} 5. d3 {[%emt 0:00:21]} d6 {[%emt 0:00:25]} 6. h3 {[%emt 0:00:48]} h6 {[%emt 0:01:57]} 7. Bb3 {[%emt 0:01:35]} O-O {[%emt 0:02:14]} 8. O-O {[%emt 0:00:29]} Bb6 {[%emt 0:00:56]} 9. Be3 {[%emt 0:04:16]} Be6 {[%emt 0:02:36]} 10. Bc2 {[%emt 0:02:25]} Ne7 {[%emt 0:04:47]} 11. d4 {[%emt 0:05:24]} Ng6 {[%emt 0:04:07]} 12. Nbd2 {[%emt 0:04:10]} Re8 {[%emt 0:07:31]} 13. Re1 {[%emt 0:01:49]} c6 {[%emt 0:03:20]} 14. Nf1 {[%emt 0:06:22]} Qc7 {[%emt 0:08:50]} 15. Ng3 {[%emt 0:02:34]} Rad8 {[%emt 0:05:04]} 16. Qd2 {[%emt 0:05:38]} d5 {[%emt 0:06:27]} 17. exd5 {[%emt 0:05:49]} Bxd5 {[%emt 0:02:30]} 18. Bxg6 {[%emt 0:01:51]} Bxf3 {[%emt 0:02:16]} 19. Bxf7+ {[%emt 0:09:36]} Qxf7 {[%emt 0:00:16]} 20. gxf3 {[%emt 0:00:07]} exd4 {[%emt 0:02:08]} 21. cxd4 {[%emt 0:01:19]} c5 {[%emt 0:01:19]} 22. Kh2 {[%emt 0:08:48]} cxd4 {[%emt 0:02:12]} 23. Bf4 {[%emt 0:00:23]} Nd5 {[%emt 0:01:51]} 24. Rxe8+ {[%emt 0:06:03]} Rxe8 {[%emt 0:00:26]} 25. Bd6 {[%emt 0:01:03]} Qxf3 {[%emt 0:02:34]} 26. Rg1 {[%emt 0:07:47]} Qf6 {[%emt 0:01:37]} 27. Ba3 {[%emt 0:01:01]} Nf4 {[%emt 0:01:58]} 28. Re1 {[%emt 0:11:02]} Rxe1 {[%emt 0:01:28]} 29. Qxe1 {[%emt 0:13:20]} Qc6 {[%emt 0:00:40]} 30. Qe4 {[%emt 0:00:00]} Bc7 {[%emt 0:02:38]} 31. Qxc6 {[%emt 0:00:00]} bxc6 {[%emt 0:00:05]} 32. Bc5 {[%emt 0:00:00]} d3 {[%emt 0:00:17]} 33. Be3 {[%emt 0:00:00]} Ne2 {[%emt 0:01:10]} 34. Kg2 {[%emt 0:00:00]} Bf4 {[%emt 0:01:07]} 35. Kf3 {[%emt 0:00:00]} Kf7 {[%emt 0:06:54]} 36. Nxe2 {[%emt 0:00:00]} Bxe3 {[%emt 0:00:32]} 37. Kxe3 {[%emt 0:00:22]} dxe2 {[%emt 0:00:06]} 38. Kxe2 {[%emt 0:00:05]} Kg6 {[%emt 0:01:50]} 39. Ke3 {[%emt 0:01:08]} Kg5 {[%emt 0:00:32]} 40. Kf3 {[%emt 0:00:17]} Kf5 {[%emt 0:00:45]} 41. Ke3 {[%emt 0:00:36]} Ke5 {[%emt 0:00:42]} 42. b3 {[%emt 0:01:33]} c5 {[%emt 0:01:27]} 43. a4 {[%emt 0:01:19]} a5 {[%emt 0:02:03]} 44. Kd3 {[%emt 0:00:06]} Kd5 {[%emt 0:01:28]} 45. f3 {[%emt 0:00:31]} g5 {[%emt 0:00:53]} 46. Kc3 {[%emt 0:00:05]} h5 {[%emt 0:01:02]} 47. Kd3 {[%emt 0:00:11]} Ke5 {[%emt 0:02:10]} 48. Ke3 {[%emt 0:02:14]} h4 {[%emt 0:00:24]} 49. Ke2 {[%emt 0:00:04]} Kd4 {[%emt 0:00:24]} 50. Kd2 {[%emt 0:00:07]} c4 {[%emt 0:00:15]} 51. bxc4 {[%emt 0:00:34]} Kxc4 {[%emt 0:00:09]} 52. Ke3 {[%emt 0:00:14]} Kb4 {[%emt 0:00:13]} 53. f4 {[%emt 0:02:34]} gxf4+ {[%emt 0:00:27]} 54. Kxf4 {[%emt 0:00:00]} Kxa4 {[%emt 0:00:11]} 55. Kg4 {[%emt 0:00:00]} Kb5 {[%emt 0:00:18]} 56. Kxh4 {[%emt 0:00:00]} a4 {[%emt 0:00:04]} 57. Kg5 {[%emt 0:00:00]} a3 {[%emt 0:00:14]} 58. h4 {[%emt 0:00:00]} a2 {[%emt 0:00:05]} 59. h5 {[%emt 0:00:00]} a1=Q {[%emt 0:00:08]} 60. h6 {[%emt 0:00:00]} Qh8 {[%emt 0:00:07]} 61. Kg6 {[%emt 0:00:00]} Kc6 {[%emt 0:00:50]} 62. h7 {[%emt 0:00:00]} Kd6 {[%emt 0:00:21]} 63. Kh6 {[%emt 0:00:00]} Qf6+ {[%emt 0:00:04]} 64. Kh5 {[%emt 0:00:00]} Qg7 {[%emt 0:00:05]} 0-1

[Event "34th MPL National U12G Chess-ch 2022"]
[Site "Mysore"]
[Date "2022.04.10"]
[Round "3.2"]
[White "Singh Myra"]
[Black "Aadya Gupta"]
[Result "0-1"]
[ECO "C72"]
[WhiteElo "1606"]
[BlackElo "1218"]
[Annotator "NA RC"]
[PlyCount "110"]
[EventDate "2022.04.09"]
[EventCountry "IND"]
[SourceTitle "playchess.com"]
[Source "ChessBase"]
[SourceQuality "1"]
[TimeControl "5400+30"]

1. e4 e5 2. Nf3 Nc6 3. Bb5 a6 4. Ba4 d6 5. O-O Bd7 6. d4 Nge7 7. Re1 Ng6 8. Bxc6 Bxc6 9. b3 Be7 10. Bb2 Bf6 11. Nbd2 O-O 12. Nc4 Re8 13. d5 Bd7 14. Ne3 Bg5 15. Nf1 Qf6 16. Nxg5 Qxg5 17. Ng3 Nf4 18. Bc1 g6 19. Be3 h5 20. f3 h4 21. Bxf4 exf4 22. Nf1 h3 23. Qe2 Kg7 24. Qf2 hxg2 25. Qxg2 Qh5 26. Nd2 b5 27. c4 b4 28. Rac1 Qe5 29. Nf1 Rh8 30. Qd2 Rh3 31. Qf2 Rah8 32. Red1 Qh5 33. Rd3 Re8 34. Rcd1 g5 35. Qg2 Re5 36. R1d2 Rh4 37. Kf2 f5 38. exf5 Bxf5 39. Rd4 Bh3 40. Qh1 Qe8 41. Re4 Rxe4 42. fxe4 Qe5 43. Qg1 Rg4 44. Qh1 Qa1 45. Rc2 Rg2+ 46. Qxg2 Bxg2 47. Kxg2 g4 48. Kf2 Qd4+ 49. Ke2 f3+ 50. Ke1 Qxe4+ 51. Kd1 Qd3+ 52. Nd2 f2 53. Kc1 f1=Q+ 54. Kb2 Qd4+ 55. Rc3 Qxc3# 0-1

[Event "34th MPL National U12G Chess-ch 2022"]
[Site "Mysore"]
[Date "2022.04.10"]
[Round "3.3"]
[White "Nihira Koul"]
[Black "Kalyani Sirin"]
[Result "0-1"]
[ECO "A05"]
[WhiteElo "1188"]
[BlackElo "1243"]
[Annotator "NA RC"]
[PlyCount "194"]
[EventDate "2022.04.09"]
[EventCountry "IND"]
[SourceTitle "playchess.com"]
[Source "ChessBase"]
[SourceQuality "1"]
[TimeControl "5400+30"]

1. Nf3 {[%emt 0:00:05]} Nf6 {[%emt 0:00:08]} 2. b3 {[%emt 0:00:09]} g6 {[%emt 0:00:11]} 3. Bb2 {[%emt 0:00:09]} Bg7 {[%emt 0:00:11]} 4. g3 {[%emt 0:00:08]} d5 {[%emt 0:00:11]} 5. Bg2 {[%emt 0:00:12]} O-O {[%emt 0:00:14]} 6. O-O {[%emt 0:00:06]} c5 {[%emt 0:01:00]} 7. d3 {[%emt 0:00:17]} Nc6 {[%emt 0:00:16]} 8. Nbd2 {[%emt 0:00:14]} b6 {[%emt 0:03:08]} 9. Ne5 {[%emt 0:00:50]} Nxe5 {[%emt 0:01:39]} 10. Bxe5 {[%emt 0:00:12]} Bb7 {[%emt 0:00:24]} 11. e3 {[%emt 0:08:40]} Rc8 {[%emt 0:04:21]} 12. d4 {[%emt 0:01:01]} Ba6 {[%emt 0:02:16]} 13. Re1 {[%emt 0:02:17]} c4 {[%emt 0:05:28]} 14. bxc4 {[%emt 0:02:27]} Bxc4 {[%emt 0:00:15]} 15. Nxc4 {[%emt 0:00:13]} Rxc4 {[%emt 0:00:11]} 16. Bf1 {[%emt 0:00:43]} Rc3 {[%emt 0:00:30]} 17. Bd3 {[%emt 0:00:29]} e6 {[%emt 0:04:01]} 18. Qd2 {[%emt 0:00:59]} Qc8 {[%emt 0:02:15]} 19. Bd6 {[%emt 0:00:37]} Rd8 {[%emt 0:04:03]} 20. Be7 {[%emt 0:01:12]} Rd7 {[%emt 0:01:19]} 21. Bb4 {[%emt 0:01:17]} Rcc7 {[%emt 0:00:25]} 22. Rac1 {[%emt 0:02:00]} Ne4 23. Bxe4 {[%emt 0:01:18]} dxe4 {[%emt 0:02:51]} 24. c3 {[%emt 0:02:33]} Bf8 {[%emt 0:01:12]} 25. Bxf8 {[%emt 0:00:15]} Kxf8 {[%emt 0:00:24]} 26. Qc2 {[%emt 0:01:16]} f5 {[%emt 0:01:41]} 27. Qb3 {[%emt 0:00:54]} Rc4 {[%emt 0:00:29]} 28. Rc2 {[%emt 0:01:15]} Rdc7 {[%emt 0:00:32]} 29. Rec1 {[%emt 0:00:09]} Kf7 {[%emt 0:01:24]} 30. Kf1 {[%emt 0:01:44]} Qa6 {[%emt 0:05:37]} 31. Ke1 {[%emt 0:00:15]} Kf6 {[%emt 0:00:26]} 32. Kd2 {[%emt 0:01:05]} Qa5 {[%emt 0:02:13]} 33. Rb1 {[%emt 0:02:06]} g5 {[%emt 0:03:18]} 34. Rbc1 {[%emt 0:05:08]} b5 {[%emt 0:02:11]} 35. a3 {[%emt 0:00:36]} a6 {[%emt 0:00:19]} 36. Ke2 {[%emt 0:01:47]} Qb6 {[%emt 0:01:44]} 37. Rb1 {[%emt 0:02:21]} Qc6 {[%emt 0:00:26]} 38. Kd2 {[%emt 0:01:34]} Qe8 {[%emt 0:02:09]} 39. Rh1 {[%emt 0:07:49]} Rd7 {[%emt 0:01:54]} 40. h4 {[%emt 0:01:33]} g4 {[%emt 0:00:18]} 41. Ke2 {[%emt 0:01:32]} Qa8 {[%emt 0:01:35]} 42. Ra1 {[%emt 0:01:28]} Qc6 {[%emt 0:01:48]} 43. Rb1 {[%emt 0:01:58]} Rd5 {[%emt 0:00:53]} 44. Rbc1 {[%emt 0:01:11]} Rd7 {[%emt 0:04:53]} 45. Rb1 {[%emt 0:00:23]} Rc7 {[%emt 0:00:10]} 46. Kd2 {[%emt 0:01:09]} Qd5 {[%emt 0:00:18]} 47. Ke2 {[%emt 0:00:46]} Kg6 {[%emt 0:01:22]} 48. Qb2 {[%emt 0:01:54]} Kf7 {[%emt 0:05:24]} 49. Qb3 {[%emt 0:01:28]} Kg6 {[%emt 0:00:10]} 50. Qb2 {[%emt 0:00:09]} e5 {[%emt 0:00:45]} 51. Rd1 {[%emt 0:03:23]} a5 {[%emt 0:08:31]} 52. dxe5 {[%emt 0:00:23]} Qxe5 {[%emt 0:29:07]} 53. Rd4 {[%emt 0:00:32]} Qc5 {[%emt 0:00:00]} 54. Qb3 {[%emt 0:02:35]} a4 {[%emt 0:00:00]} 55. Qa2 {[%emt 0:00:46]} Kf6 {[%emt 0:00:00]} 56. Rxc4 {[%emt 0:00:23]} Qxc4+ {[%emt 0:00:00]} 57. Qxc4 {[%emt 0:00:06]} Rxc4 {[%emt 0:00:00]} 58. Kd2 {[%emt 0:00:11]} Ke5 {[%emt 0:00:00]} 59. Rb2 {[%emt 0:00:11]} Rc5 {[%emt 0:00:00]} 60. Rb4 {[%emt 0:00:18]} Kd5 {[%emt 0:00:00]} 61. Rd4+ {[%emt 0:00:57]} Kc6 {[%emt 0:00:00]} 62. Kc2 {[%emt 0:00:55]} Rd5 {[%emt 0:00:00]} 63. Kd2 {[%emt 0:01:46]} Kc5 {[%emt 0:00:00]} 64. Ke2 {[%emt 0:01:55]} h6 {[%emt 0:00:00]} 65. h5 {[%emt 0:01:12]} Kc6 {[%emt 0:00:00]} 66. Rxd5 {[%emt 0:01:28]} Kxd5 {[%emt 0:00:00]} 67. Kd2 {[%emt 0:00:04]} Ke5 {[%emt 0:00:42]} 68. Ke2 {[%emt 0:00:18]} Kf6 {[%emt 0:00:59]} 69. Kd2 {[%emt 0:00:36]} Kg5 {[%emt 0:00:43]} 70. c4 {[%emt 0:00:06]} bxc4 {[%emt 0:00:04]} 71. Kc3 {[%emt 0:00:04]} Kxh5 {[%emt 0:00:07]} 72. Kxc4 {[%emt 0:00:04]} Kg5 {[%emt 0:00:21]} 73. Kb4 {[%emt 0:00:06]} h5 {[%emt 0:00:06]} 74. Kxa4 {[%emt 0:00:03]} h4 {[%emt 0:00:10]} 75. gxh4+ {[%emt 0:00:40]} Kxh4 {[%emt 0:00:06]} 76. Kb3 {[%emt 0:00:20]} f4 {[%emt 0:00:35]} 77. exf4 {[%emt 0:02:11]} e3 {[%emt 0:00:14]} 78. fxe3 {[%emt 0:00:09]} g3 {[%emt 0:00:04]} 79. Kc4 {[%emt 0:00:14]} g2 {[%emt 0:00:08]} 80. Kd5 {[%emt 0:00:06]} g1=Q {[%emt 0:00:15]} 81. e4 {[%emt 0:00:07]} Qg8+ {[%emt 0:00:20]} 82. Ke5 {[%emt 0:00:16]} Kg4 {[%emt 0:00:22]} 83. f5 {[%emt 0:00:10]} Kg5 {[%emt 0:00:19]} 84. a4 {[%emt 0:00:12]} Qe8+ {[%emt 0:00:11]} 85. Kd6 {[%emt 0:00:33]} Qxe4 {[%emt 0:00:12]} 86. a5 {[%emt 0:00:08]} Kxf5 {[%emt 0:00:07]} 87. Kc5 {[%emt 0:00:20]} Ke6 {[%emt 0:00:22]} 88. Kb6 {[%emt 0:00:05]} Qa8 {[%emt 0:00:16]} 89. a6 {[%emt 0:00:33]} Kd6 {[%emt 0:00:07]} 90. Kb5 {[%emt 0:00:09]} Qa7 {[%emt 0:00:15]} 91. Ka5 {[%emt 0:00:13]} Kc5 {[%emt 0:00:11]} 92. Ka4 {[%emt 0:00:06]} Qxa6+ {[%emt 0:00:07]} 93. Kb3 {[%emt 0:00:05]} Qd3+ {[%emt 0:00:12]} 94. Kb2 {[%emt 0:00:12]} Kb4 {[%emt 0:00:08]} 95. Kc1 {[%emt 0:00:11]} Qe2 {[%emt 0:00:06]} 96. Kb1 {[%emt 0:00:04]} Kb3 {[%emt 0:00:04]} 97. Kc1 {[%emt 0:00:08]} Qe1# {[%emt 0:14:37]} 0-1

[Event "34th MPL National U12G Chess-ch 2022"]
[Site "Mysore"]
[Date "2022.04.10"]
[Round "3.4"]
[White "Prishita Gupta"]
[Black "Gifty R S"]
[Result "1-0"]
[ECO "D11"]
[WhiteElo "1412"]
[BlackElo "1171"]
[Annotator "NA RC"]
[PlyCount "90"]
[EventDate "2022.04.09"]
[EventCountry "IND"]
[SourceTitle "playchess.com"]
[Source "ChessBase"]
[SourceQuality "1"]
[TimeControl "5400+30"]

1. d4 {[%emt 1:31:00]} d5 {[%emt 1:31:00]} 2. g3 {[%emt 0:00:30]} Nf6 3. Bg2 {[%emt 0:00:30]} Bf5 {[%emt 0:01:00]} 4. c4 {[%emt 0:00:30]} c6 {[%emt 0:00:30]} 5. Nc3 {[%emt 0:00:30]} e6 {[%emt 0:00:30]} 6. Nf3 {[%emt 0:00:30]} Bd6 {[%emt 0:00:30]} 7. Ne5 {[%emt 0:00:30]} Nbd7 {[%emt 0:00:30]} 8. Bf4 {[%emt 0:00:30]} Nh5 {[%emt 0:00:30]} 9. Nxf7 {[%emt 0:00:30]} Kxf7 {[%emt 0:00:30]} 10. Bxd6 {[%emt 0:00:30]} Nb6 {[%emt 0:00:30]} 11. c5 {[%emt 0:00:30]} Nc4 12. e4 {[%emt 0:00:30]} Bg6 {[%emt 0:01:00]} 13. Qe2 {[%emt 0:00:30]} Nxd6 {[%emt 0:00:30]} 14. cxd6 {[%emt 0:00:30]} Qxd6 {[%emt 0:00:30]} 15. e5 Qf8 {[%emt 0:00:30]} 16. Bf3 {[%emt 0:01:00]} Nf4 {[%emt 0:00:30]} 17. gxf4 Ke8 {[%emt 0:00:30]} 18. Qd2 {[%emt 0:01:00]} Qf5 {[%emt 0:00:30]} 19. h4 {[%emt 0:00:30]} h5 {[%emt 0:00:30]} 20. Na4 {[%emt 0:00:30]} Rf8 {[%emt 0:00:30]} 21. Rg1 Qc2 22. Qxc2 Bxc2 23. Bxh5+ g6 24. Bxg6+ Bxg6 25. Rxg6 Rxf4 26. Rg8+ Rf8 27. Rxf8+ Kxf8 28. O-O-O Ke7 29. Rg1 Kf7 30. Rg4 Rh8 31. Nc5 b6 32. Nd7 Rh5 33. Nf6 Rh8 34. b4 a5 35. bxa5 bxa5 36. a4 Rh6 37. h5 Rh8 38. Rg3 Ke7 39. Rg7+ Kd8 40. Rh7 Rxh7 41. Nxh7 Ke7 42. Nf6 Kf7 43. h6 Kg6 44. h7 Kg7 45. f4 Kh8 1-0